[Event "Titled Tuesday Blitz January 11 2022"]
[White "Nesterov, Arseniy"]
[Black "Skuhala, Jernej"]
[WhiteFideId "24198455"]
[BlackFideId "14605651"]
[WhiteElo "2489"]
[BlackElo "2415"]
[Result "1-0"]
[Round "01"]
[TimeControl "180+1"]
[Date "2022.01.11"]
[WhiteClock "0:00:29"]
[BlackClock "0:01:28"]

1. d4 {[%clk 0:03:00]}  Nf6 {[%clk 0:02:59]} 2. c4 {[%clk 0:03:00]}  e6 {[%clk 0:02:56]} 3. Nc3 {[%clk 0:02:59]}  Bb4 {[%clk 0:02:54]} 4. Qc2 {[%clk 0:02:59]}  c5 {[%clk 0:02:51]} 5. dxc5 {[%clk 0:02:59]}  O-O {[%clk 0:02:51]} 6. Nf3 {[%clk 0:02:58]}  Na6 {[%clk 0:02:50]} 7. g3 {[%clk 0:02:59]}  Nxc5 {[%clk 0:02:50]} 8. Bg2 {[%clk 0:02:59]}  Nce4 {[%clk 0:02:51]} 9. O-O {[%clk 0:03:00]}  Nxc3 {[%clk 0:02:51]} 10. bxc3 {[%clk 0:03:01]}  Bc5 {[%clk 0:02:51]} 11. e4 {[%clk 0:02:58]}  d6 {[%clk 0:02:50]} 12. e5 {[%clk 0:02:56]}  dxe5 {[%clk 0:02:51]} 13. Nxe5 {[%clk 0:02:57]}  Qc7 {[%clk 0:02:51]} 14. Bf4 {[%clk 0:02:56]}  Bd6 {[%clk 0:02:51]} 15. Qe2 {[%clk 0:02:56]}  Nd7 {[%clk 0:02:47]} 16. Nxd7 {[%clk 0:02:48]}  Bxd7 {[%clk 0:02:48]} 17. Bxd6 {[%clk 0:02:44]}  Qxd6 {[%clk 0:02:48]} 18. Bxb7 {[%clk 0:02:43]}  Rab8 {[%clk 0:02:48]} 19. Rfd1 {[%clk 0:02:38]}  Qc7 {[%clk 0:02:47]} 20. Be4 {[%clk 0:02:38]}  Rfc8 {[%clk 0:02:45]} 21. Bxh7+ {[%clk 0:02:22]}  Kxh7 {[%clk 0:02:36]} 22. Qd3+ {[%clk 0:02:22]}  f5 {[%clk 0:02:36]} 23. Qxd7 {[%clk 0:02:23]}  Qxd7 {[%clk 0:02:37]} 24. Rxd7 {[%clk 0:02:23]}  Rxc4 {[%clk 0:02:37]} 25. Rxa7 {[%clk 0:02:23]}  Rxc3 {[%clk 0:02:37]} 26. Re7 {[%clk 0:02:09]}  Rb6 {[%clk 0:02:32]} 27. a4 {[%clk 0:02:08]}  Kg6 {[%clk 0:02:32]} 28. a5 {[%clk 0:02:06]}  Ra6 {[%clk 0:02:29]} 29. Rd1 {[%clk 0:01:56]}  Kf6 {[%clk 0:02:18]} 30. Rdd7 {[%clk 0:01:53]}  g5 {[%clk 0:02:17]} 31. Ra7 {[%clk 0:01:47]}  Rxa7 {[%clk 0:02:17]} 32. Rxa7 {[%clk 0:01:48]}  Ra3 {[%clk 0:02:16]} 33. a6 {[%clk 0:01:47]}  Ra1+ {[%clk 0:02:16]} 34. Kg2 {[%clk 0:01:47]}  g4 {[%clk 0:02:17]} 35. Ra8 {[%clk 0:01:47]}  Ke5 {[%clk 0:02:17]} 36. h4 {[%clk 0:01:41]}  gxh3+ {[%clk 0:02:15]} 37. Kxh3 {[%clk 0:01:42]}  Ra2 {[%clk 0:02:16]} 38. a7 {[%clk 0:01:36]}  Ke4 {[%clk 0:02:16]} 39. f4 {[%clk 0:01:33]}  Kf3 {[%clk 0:02:12]} 40. Kh4 {[%clk 0:01:30]}  Ra6 {[%clk 0:02:11]} 41. Kh5 {[%clk 0:01:27]}  Ra5 {[%clk 0:02:12]} 42. Kh6 {[%clk 0:01:27]}  Ra6 {[%clk 0:02:10]} 43. Kh5 {[%clk 0:01:16]}  Ra5 {[%clk 0:02:06]} 44. Kh4 {[%clk 0:01:10]}  Ra6 {[%clk 0:02:06]} 45. Re8 {[%clk 0:01:08]}  Rxa7 {[%clk 0:02:06]} 46. Rxe6 {[%clk 0:01:08]}  Rh7+ {[%clk 0:02:06]} 47. Kg5 {[%clk 0:01:08]}  Rf7 {[%clk 0:01:58]} 48. Rf6 {[%clk 0:01:06]}  Rg7+ {[%clk 0:01:56]} 49. Kxf5 {[%clk 0:00:55]}  Kxg3 {[%clk 0:01:55]} 50. Ke6 {[%clk 0:00:47]}  Kg4 {[%clk 0:01:52]} 51. f5 {[%clk 0:00:47]}  Kg5 {[%clk 0:01:53]} 52. Rf8 {[%clk 0:00:45]}  Ra7 {[%clk 0:01:52]} 53. Rg8+ {[%clk 0:00:45]}  Kh6 {[%clk 0:01:52]} 54. Rd8 {[%clk 0:00:37]}  Ra6+ {[%clk 0:01:48]} 55. Rd6 {[%clk 0:00:37]}  Ra7 {[%clk 0:01:47]} 56. Kf6 {[%clk 0:00:36]}  Kh7 {[%clk 0:01:46]} 57. Re6 {[%clk 0:00:36]}  Ra5 {[%clk 0:01:40]} 58. Re7+ {[%clk 0:00:35]}  Kg8 {[%clk 0:01:40]} 59. Kg6 {[%clk 0:00:34]}  Kf8 {[%clk 0:01:35]} 60. Rh7 {[%clk 0:00:29]}  Ra1 {[%clk 0:01:27]} 61. Rh8+ {[%clk 0:00:27]}  Ke7 {[%clk 0:01:28]} 62. f6+ {[%clk 0:00:28]}  Ke6 {[%clk 0:01:28]} 63. Re8+ {[%clk 0:00:28]}  Kd7 {[%clk 0:01:28]} 64. f7 {[%clk 0:00:28]}  Rg1+ {[%clk 0:01:28]} 65. Kh5 {[%clk 0:00:29]} 1-0


[Site "https://www.chess.com"]

[Event "Titled Tuesday Blitz January 11 2022"]
[White "Onyshchuk, Volodymyr"]
[Black "Juhasz, Agoston"]
[WhiteFideId "14114038"]
[BlackFideId "778346"]
[WhiteElo "2642"]
[BlackElo "2211"]
[Result "1-0"]
[Round "01"]
[TimeControl "180+1"]
[Date "2022.01.11"]
[WhiteClock "0:01:27"]
[BlackClock "0:00:01"]

1. g3 {[%clk 0:02:45]}  Nf6 {[%clk 0:02:55]} 2. Bg2 {[%clk 0:02:45]}  d5 {[%clk 0:02:55]} 3. d3 {[%clk 0:02:45]}  Bg4 {[%clk 0:02:47]} 4. b3 {[%clk 0:02:42]}  e6 {[%clk 0:02:43]} 5. Bb2 {[%clk 0:02:42]}  Be7 {[%clk 0:02:43]} 6. Nd2 {[%clk 0:02:42]}  O-O {[%clk 0:02:43]} 7. h3 {[%clk 0:02:39]}  Bh5 {[%clk 0:02:43]} 8. g4 {[%clk 0:02:39]}  Bg6 {[%clk 0:02:43]} 9. e3 {[%clk 0:02:40]}  c5 {[%clk 0:02:42]} 10. Ne2 {[%clk 0:02:40]}  Nc6 {[%clk 0:02:42]} 11. Nf4 {[%clk 0:02:36]}  e5 {[%clk 0:02:27]} 12. Nxg6 {[%clk 0:02:35]}  hxg6 {[%clk 0:02:28]} 13. g5 {[%clk 0:02:33]}  Nh5 {[%clk 0:01:58]} 14. h4 {[%clk 0:02:33]}  Qd7 {[%clk 0:01:50]} 15. a3 {[%clk 0:02:22]}  Rae8 {[%clk 0:01:42]} 16. Qf3 {[%clk 0:02:13]}  d4 {[%clk 0:01:32]} 17. Bh3 {[%clk 0:02:05]}  Qc7 {[%clk 0:01:26]} 18. Ne4 {[%clk 0:02:04]}  Kh7 {[%clk 0:01:12]} 19. Bg4 {[%clk 0:02:01]}  Kg8 {[%clk 0:00:30]} 20. Bxh5 {[%clk 0:02:00]}  gxh5 {[%clk 0:00:30]} 21. Qxh5 {[%clk 0:02:00]}  Qd7 {[%clk 0:00:17]} 22. O-O-O {[%clk 0:02:00]}  Qf5 {[%clk 0:00:15]} 23. Rdg1 {[%clk 0:01:56]}  b5 {[%clk 0:00:10]} 24. Rg3 {[%clk 0:01:41]}  c4 {[%clk 0:00:10]} 25. Rf3 {[%clk 0:01:40]}  Qe6 {[%clk 0:00:09]} 26. Nf6+ {[%clk 0:01:28]}  Bxf6 {[%clk 0:00:01]} 27. gxf6 {[%clk 0:01:27]} 1-0


[Site "https://www.chess.com"]

[Event "Titled Tuesday Blitz January 11 2022"]
[White "Pastar, Slaven"]
[Black "Obregon, Andres Carlos"]
[WhiteFideId "14402718"]
[BlackFideId "111724"]
[WhiteElo "2248"]
[BlackElo "2572"]
[Result "1-0"]
[Round "01"]
[TimeControl "180+1"]
[Date "2022.01.11"]
[WhiteClock "0:01:11"]
[BlackClock "0:01:15"]

1. b3 {[%clk 0:03:00]}  e5 {[%clk 0:02:56]} 2. Bb2 {[%clk 0:03:00]}  d6 {[%clk 0:02:48]} 3. e3 {[%clk 0:02:59]}  Nf6 {[%clk 0:02:43]} 4. d4 {[%clk 0:02:59]}  exd4 {[%clk 0:02:40]} 5. Bxd4 {[%clk 0:02:57]}  Nc6 {[%clk 0:02:35]} 6. Bb2 {[%clk 0:02:58]}  g6 {[%clk 0:02:30]} 7. Nc3 {[%clk 0:02:55]}  Bg7 {[%clk 0:02:28]} 8. Nd5 {[%clk 0:02:49]}  O-O {[%clk 0:02:26]} 9. Nxf6+ {[%clk 0:02:38]}  Bxf6 {[%clk 0:02:25]} 10. c3 {[%clk 0:02:36]}  Bf5 {[%clk 0:02:14]} 11. Be2 {[%clk 0:02:35]}  d5 {[%clk 0:02:11]} 12. Nf3 {[%clk 0:02:36]}  Be4 {[%clk 0:02:09]} 13. O-O {[%clk 0:02:36]}  Qd6 {[%clk 0:02:07]} 14. Qd2 {[%clk 0:02:32]}  Rad8 {[%clk 0:02:05]} 15. c4 {[%clk 0:02:24]}  dxc4 {[%clk 0:02:01]} 16. Qxd6 {[%clk 0:02:23]}  Rxd6 {[%clk 0:02:01]} 17. Bxf6 {[%clk 0:02:22]}  Rxf6 {[%clk 0:02:00]} 18. bxc4 {[%clk 0:02:20]}  Rd8 {[%clk 0:01:53]} 19. Rfd1 {[%clk 0:02:19]}  Rfd6 {[%clk 0:01:53]} 20. Rxd6 {[%clk 0:02:06]}  Rxd6 {[%clk 0:01:53]} 21. Rd1 {[%clk 0:02:06]}  Rxd1+ {[%clk 0:01:46]} 22. Bxd1 {[%clk 0:02:07]}  Na5 {[%clk 0:01:43]} 23. c5 {[%clk 0:02:03]}  Bd5 {[%clk 0:01:39]} 24. a4 {[%clk 0:01:56]}  b6 {[%clk 0:01:35]} 25. cxb6 {[%clk 0:01:54]}  axb6 {[%clk 0:01:36]} 26. Kf1 {[%clk 0:01:51]}  Kf8 {[%clk 0:01:34]} 27. Ke2 {[%clk 0:01:50]}  Ke7 {[%clk 0:01:34]} 28. Kd3 {[%clk 0:01:50]}  Kd6 {[%clk 0:01:33]} 29. e4 {[%clk 0:01:49]}  Bc4+ {[%clk 0:01:33]} 30. Kd4 {[%clk 0:01:44]}  c5+ {[%clk 0:01:32]} 31. Kc3 {[%clk 0:01:44]}  f6 {[%clk 0:01:32]} 32. Bc2 {[%clk 0:01:41]}  Bf1 {[%clk 0:01:30]} 33. g3 {[%clk 0:01:39]}  Nc6 {[%clk 0:01:29]} 34. Nd2 {[%clk 0:01:38]}  Bg2 {[%clk 0:01:26]} 35. f4 {[%clk 0:01:36]}  Nd4 {[%clk 0:01:23]} 36. Bd3 {[%clk 0:01:30]}  Kc6 {[%clk 0:01:19]} 37. Bc4 {[%clk 0:01:28]}  h6 {[%clk 0:01:18]} 38. Bd5+ {[%clk 0:01:28]}  Kc7 {[%clk 0:01:18]} 39. Kc4 {[%clk 0:01:18]}  Kd6 {[%clk 0:01:18]} 40. e5+ {[%clk 0:01:11]}  fxe5 {[%clk 0:01:16]} 41. fxe5+ {[%clk 0:01:10]}  Kxe5 {[%clk 0:01:15]} 42. Bxg2 {[%clk 0:01:11]} 1-0


[Site "https://www.chess.com"]

[Event "Titled Tuesday Blitz January 11 2022"]
[White "Piorun, Kacper"]
[Black "Lomaia, Diana"]
[WhiteFideId "1130420"]
[BlackFideId "13612476"]
[WhiteElo "2571"]
[BlackElo "1744"]
[Result "1-0"]
[Round "01"]
[TimeControl "180+1"]
[Date "2022.01.11"]
[WhiteClock "0:00:05"]
[BlackClock "0:00:01"]

1. e4 {[%clk 0:03:00]}  c5 {[%clk 0:02:58]} 2. Nc3 {[%clk 0:03:00]}  Nc6 {[%clk 0:02:53]} 3. g3 {[%clk 0:03:00]}  e6 {[%clk 0:02:48]} 4. Bg2 {[%clk 0:03:00]}  g6 {[%clk 0:02:48]} 5. d3 {[%clk 0:03:00]}  Bg7 {[%clk 0:02:48]} 6. f4 {[%clk 0:02:58]}  d6 {[%clk 0:02:46]} 7. Nh3 {[%clk 0:02:57]}  Nge7 {[%clk 0:02:43]} 8. O-O {[%clk 0:02:57]}  O-O {[%clk 0:02:41]} 9. g4 {[%clk 0:02:57]}  f5 {[%clk 0:02:32]} 10. gxf5 {[%clk 0:02:53]}  exf5 {[%clk 0:02:29]} 11. Bd2 {[%clk 0:02:53]}  Be6 {[%clk 0:02:15]} 12. Kh1 {[%clk 0:02:41]}  Kh8 {[%clk 0:02:15]} 13. Nd5 {[%clk 0:02:34]}  Qd7 {[%clk 0:01:52]} 14. Ng5 {[%clk 0:02:20]}  Bg8 {[%clk 0:01:25]} 15. c3 {[%clk 0:01:58]}  Rab8 {[%clk 0:01:07]} 16. Qe1 {[%clk 0:01:32]}  b5 {[%clk 0:00:55]} 17. a4 {[%clk 0:01:25]}  bxa4 {[%clk 0:00:48]} 18. Bc1 {[%clk 0:01:15]}  Nxd5 {[%clk 0:00:40]} 19. exd5 {[%clk 0:01:14]}  Na5 {[%clk 0:00:14]} 20. Ra3 {[%clk 0:00:46]}  Nb3 {[%clk 0:00:13]} 21. Be3 {[%clk 0:00:45]}  Rfe8 {[%clk 0:00:13]} 22. Qg3 {[%clk 0:00:39]}  Na5 {[%clk 0:00:13]} 23. Ra2 {[%clk 0:00:33]}  Qb7 {[%clk 0:00:12]} 24. Rxa4 {[%clk 0:00:30]}  Qxb2 {[%clk 0:00:11]} 25. Rxa5 {[%clk 0:00:28]}  Qxc3 {[%clk 0:00:11]} 26. Rxa7 {[%clk 0:00:26]}  Qxd3 {[%clk 0:00:12]} 27. Ne6 {[%clk 0:00:18]}  Bxe6 {[%clk 0:00:10]} 28. dxe6 {[%clk 0:00:19]}  Rxe6 {[%clk 0:00:09]} 29. Bg1 {[%clk 0:00:17]}  Qxg3 {[%clk 0:00:08]} 30. hxg3 {[%clk 0:00:18]}  Rbe8 {[%clk 0:00:06]} 31. Rb1 {[%clk 0:00:16]}  Re1 {[%clk 0:00:05]} 32. Rbb7 {[%clk 0:00:16]}  Rg8 {[%clk 0:00:04]} 33. Rd7 {[%clk 0:00:14]}  Rd1 {[%clk 0:00:04]} 34. Kh2 {[%clk 0:00:14]}  c4 {[%clk 0:00:04]} 35. Rac7 {[%clk 0:00:11]}  c3 {[%clk 0:00:04]} 36. Be3 {[%clk 0:00:08]}  Rd3 {[%clk 0:00:04]} 37. Bb6 {[%clk 0:00:07]}  Rd2 {[%clk 0:00:04]} 38. Ba5 {[%clk 0:00:07]}  Rd3 {[%clk 0:00:03]} 39. Rxg7 {[%clk 0:00:06]}  Rxg7 {[%clk 0:00:03]} 40. Rc8+ {[%clk 0:00:06]}  Rg8 {[%clk 0:00:03]} 41. Bxc3+ {[%clk 0:00:07]}  Rxc3 {[%clk 0:00:04]} 42. Rxc3 {[%clk 0:00:08]}  Rd8 {[%clk 0:00:03]} 43. Bd5 {[%clk 0:00:08]}  Kg7 {[%clk 0:00:03]} 44. Rc7+ {[%clk 0:00:08]}  Kh6 {[%clk 0:00:04]} 45. Kh3 {[%clk 0:00:09]}  g5 {[%clk 0:00:04]} 46. fxg5+ {[%clk 0:00:08]}  Kxg5 {[%clk 0:00:05]} 47. Rxh7 {[%clk 0:00:09]}  Re8 {[%clk 0:00:04]} 48. Rf7 {[%clk 0:00:07]}  Re1 {[%clk 0:00:05]} 49. Bg2 {[%clk 0:00:06]}  Re2 {[%clk 0:00:05]} 50. Rf8 {[%clk 0:00:07]}  Rd2 {[%clk 0:00:05]} 51. Bf3 {[%clk 0:00:06]}  Rd3 {[%clk 0:00:05]} 52. Bb7 {[%clk 0:00:05]}  Rd2 {[%clk 0:00:05]} 53. Bc8 {[%clk 0:00:06]}  Rf2 {[%clk 0:00:04]} 54. Rg8+ {[%clk 0:00:05]}  Kf6 {[%clk 0:00:04]} 55. Rd8 {[%clk 0:00:05]}  Ke5 {[%clk 0:00:03]} 56. Re8+ {[%clk 0:00:06]}  Kf6 {[%clk 0:00:03]} 57. Bd7 {[%clk 0:00:05]}  Kg5 {[%clk 0:00:03]} 58. Bc8 {[%clk 0:00:04]}  d5 {[%clk 0:00:03]} 59. Rd8 {[%clk 0:00:04]}  Rd2 {[%clk 0:00:04]} 60. Be6 {[%clk 0:00:04]}  d4 {[%clk 0:00:04]} 61. Rd5 {[%clk 0:00:04]}  Rf2 {[%clk 0:00:02]} 62. Rxd4 {[%clk 0:00:04]}  Re2 {[%clk 0:00:03]} 63. Bc8 {[%clk 0:00:04]}  Re1 {[%clk 0:00:03]} 64. Rf4 {[%clk 0:00:04]}  Rh1+ {[%clk 0:00:03]} 65. Kg2 {[%clk 0:00:04]}  Rc1 {[%clk 0:00:03]} 66. Rxf5+ {[%clk 0:00:04]}  Kg6 {[%clk 0:00:03]} 67. Rf8 {[%clk 0:00:05]}  Rc2+ {[%clk 0:00:02]} 68. Kh3 {[%clk 0:00:05]}  Rc1 {[%clk 0:00:02]} 69. Bf5+ {[%clk 0:00:04]}  Kg5 {[%clk 0:00:01]} 70. g4 {[%clk 0:00:04]}  Rd1 {[%clk 0:00:01]} 71. Rg8+ {[%clk 0:00:04]}  Kf6 {[%clk 0:00:01]} 72. Kg2 {[%clk 0:00:03]}  Kf7 {[%clk 0:00:01]} 73. Ra8 {[%clk 0:00:03]}  Rd2+ {[%clk 0:00:02]} 74. Kf3 {[%clk 0:00:03]}  Rd1 {[%clk 0:00:02]} 75. Be4 {[%clk 0:00:04]}  Rf1+ {[%clk 0:00:01]} 76. Ke3 {[%clk 0:00:05]} 1-0


[Site "https://www.chess.com"]

[Event "Titled Tuesday Blitz January 11 2022"]
[White "Sadhwani, Raunak"]
[Black "Krasilnikov, Evgeni"]
[WhiteFideId "35093487"]
[BlackFideId "4139739"]
[WhiteElo "2616"]
[BlackElo "2295"]
[Result "1-0"]
[Round "01"]
[TimeControl "180+1"]
[Date "2022.01.11"]
[WhiteClock "0:02:24"]
[BlackClock "0:00:04"]

1. e4 {[%clk 0:03:00]}  c6 {[%clk 0:02:58]} 2. Nf3 {[%clk 0:03:00]}  d5 {[%clk 0:02:59]} 3. d3 {[%clk 0:03:01]}  Qc7 {[%clk 0:02:57]} 4. Nc3 {[%clk 0:03:00]}  Nf6 {[%clk 0:02:54]} 5. e5 {[%clk 0:02:58]}  Nfd7 {[%clk 0:02:53]} 6. d4 {[%clk 0:02:59]}  e6 {[%clk 0:02:53]} 7. Ne2 {[%clk 0:02:58]}  c5 {[%clk 0:02:53]} 8. c3 {[%clk 0:02:58]}  Nc6 {[%clk 0:02:47]} 9. a3 {[%clk 0:02:58]}  Be7 {[%clk 0:02:45]} 10. Nf4 {[%clk 0:02:58]}  b6 {[%clk 0:02:26]} 11. Bd3 {[%clk 0:02:52]}  Bb7 {[%clk 0:02:25]} 12. b4 {[%clk 0:02:48]}  c4 {[%clk 0:02:22]} 13. Bc2 {[%clk 0:02:45]}  O-O-O {[%clk 0:02:04]} 14. a4 {[%clk 0:02:45]}  a5 {[%clk 0:01:30]} 15. b5 {[%clk 0:02:44]}  Na7 {[%clk 0:01:02]} 16. O-O {[%clk 0:02:44]}  Kb8 {[%clk 0:01:01]} 17. Nh5 {[%clk 0:02:40]}  g6 {[%clk 0:00:53]} 18. Nf4 {[%clk 0:02:36]}  Nc8 {[%clk 0:00:46]} 19. Re1 {[%clk 0:02:36]}  h6 {[%clk 0:00:42]} 20. Bxg6 {[%clk 0:02:35]}  Nf8 {[%clk 0:00:12]} 21. Bxf7 {[%clk 0:02:35]}  Qd7 {[%clk 0:00:12]} 22. Bh5 {[%clk 0:02:29]}  Bg5 {[%clk 0:00:11]} 23. h4 {[%clk 0:02:24]}  Bxf4 {[%clk 0:00:10]} 24. Bxf4 {[%clk 0:02:25]}  Ne7 {[%clk 0:00:11]} 25. Qd2 {[%clk 0:02:24]}  Nf5 {[%clk 0:00:10]} 26. Bg4 {[%clk 0:02:24]}  Qg7 {[%clk 0:00:10]} 27. Bxf5 {[%clk 0:02:23]}  exf5 {[%clk 0:00:10]} 28. e6+ {[%clk 0:02:24]}  Ka7 {[%clk 0:00:10]} 29. e7 {[%clk 0:02:25]}  Rg8 {[%clk 0:00:04]} 30. g3 {[%clk 0:02:24]} 1-0


[Site "https://www.chess.com"]

[Event "Titled Tuesday Blitz January 11 2022"]
[White "Savchenko, Boris"]
[Black "Remolar Gallen, Jose"]
[WhiteFideId "4147332"]
[BlackFideId "2215187"]
[WhiteElo "2512"]
[BlackElo "2205"]
[Result "0-1"]
[Round "01"]
[TimeControl "180+1"]
[Date "2022.01.11"]
[WhiteClock "0:00:50"]
[BlackClock "0:00:18"]

1. e4 {[%clk 0:02:54]}  c5 {[%clk 0:02:59]} 2. Nf3 {[%clk 0:02:26]}  d6 {[%clk 0:02:58]} 3. d4 {[%clk 0:02:25]}  cxd4 {[%clk 0:02:59]} 4. Nxd4 {[%clk 0:02:25]}  Nf6 {[%clk 0:02:59]} 5. Nc3 {[%clk 0:02:26]}  a6 {[%clk 0:02:59]} 6. Bg5 {[%clk 0:02:26]}  e6 {[%clk 0:02:59]} 7. Qe2 {[%clk 0:02:25]}  Be7 {[%clk 0:02:53]} 8. O-O-O {[%clk 0:02:24]}  Nxe4 {[%clk 0:02:44]} 9. Bxe7 {[%clk 0:02:23]}  Nxc3 {[%clk 0:02:44]} 10. Qc4 {[%clk 0:02:24]}  Nxa2+ {[%clk 0:02:31]} 11. Kb1 {[%clk 0:02:21]}  Kxe7 {[%clk 0:02:28]} 12. Bd3 {[%clk 0:02:12]}  Re8 {[%clk 0:02:10]} 13. h4 {[%clk 0:02:08]}  Nc6 {[%clk 0:01:50]} 14. Nxc6+ {[%clk 0:02:05]}  bxc6 {[%clk 0:01:50]} 15. Kxa2 {[%clk 0:01:57]}  e5 {[%clk 0:01:24]} 16. Qxc6 {[%clk 0:01:53]}  Be6+ {[%clk 0:01:14]} 17. Kb1 {[%clk 0:01:53]}  Qa5 {[%clk 0:01:01]} 18. Bxh7 {[%clk 0:01:37]}  Qa2+ {[%clk 0:00:50]} 19. Kc1 {[%clk 0:01:37]}  Red8 {[%clk 0:00:50]} 20. b3 {[%clk 0:01:20]}  Rac8 {[%clk 0:00:43]} 21. Qa4 {[%clk 0:01:14]}  Qxa4 {[%clk 0:00:27]} 22. bxa4 {[%clk 0:01:14]}  g6 {[%clk 0:00:27]} 23. h5 {[%clk 0:01:13]}  Kf6 {[%clk 0:00:27]} 24. Rd3 {[%clk 0:01:08]}  Bf5 {[%clk 0:00:26]} 25. Rf3 {[%clk 0:01:05]}  Rxc2+ {[%clk 0:00:25]} 26. Kd1 {[%clk 0:01:06]}  Rdc8 {[%clk 0:00:22]} 27. Rhh3 {[%clk 0:00:48]}  Rc1+ {[%clk 0:00:19]} 28. Kd2 {[%clk 0:00:49]}  R8c2+ {[%clk 0:00:19]} 29. Ke3 {[%clk 0:00:50]}  Re1# {[%clk 0:00:18]} 0-1


[Site "https://www.chess.com"]

[Event "Titled Tuesday Blitz January 11 2022"]
[White "Shimanov, Aleksandr"]
[Black "Jumanov, Elbek"]
[WhiteFideId "4198603"]
[BlackFideId "14202905"]
[WhiteElo "2636"]
[BlackElo "2054"]
[Result "1-0"]
[Round "01"]
[TimeControl "180+1"]
[Date "2022.01.11"]
[WhiteClock "0:00:56"]
[BlackClock "0:00:07"]

1. b3 {[%clk 0:03:00]}  c5 {[%clk 0:02:59]} 2. Bb2 {[%clk 0:03:01]}  Nc6 {[%clk 0:02:59]} 3. e4 {[%clk 0:03:01]}  e6 {[%clk 0:02:58]} 4. Bb5 {[%clk 0:03:02]}  Nf6 {[%clk 0:02:55]} 5. Bxc6 {[%clk 0:03:01]}  bxc6 {[%clk 0:02:54]} 6. d3 {[%clk 0:03:00]}  Be7 {[%clk 0:02:53]} 7. Nd2 {[%clk 0:02:59]}  O-O {[%clk 0:02:53]} 8. f4 {[%clk 0:02:57]}  Qc7 {[%clk 0:02:46]} 9. Ne2 {[%clk 0:02:53]}  Ng4 {[%clk 0:02:35]} 10. Nf1 {[%clk 0:02:49]}  d5 {[%clk 0:02:23]} 11. h3 {[%clk 0:02:46]}  Nh6 {[%clk 0:02:08]} 12. Nd2 {[%clk 0:02:41]}  dxe4 {[%clk 0:01:59]} 13. Nxe4 {[%clk 0:02:39]}  Nf5 {[%clk 0:01:52]} 14. Qd2 {[%clk 0:02:39]}  a5 {[%clk 0:01:44]} 15. a4 {[%clk 0:02:38]}  Rd8 {[%clk 0:01:26]} 16. O-O {[%clk 0:02:35]}  Nd4 {[%clk 0:01:17]} 17. Nxd4 {[%clk 0:02:30]}  cxd4 {[%clk 0:01:16]} 18. Qf2 {[%clk 0:02:31]}  c5 {[%clk 0:01:16]} 19. Rae1 {[%clk 0:02:30]}  Bb7 {[%clk 0:01:16]} 20. Nd2 {[%clk 0:02:26]}  Bd6 {[%clk 0:01:13]} 21. Bc1 {[%clk 0:02:23]}  Bd5 {[%clk 0:01:06]} 22. Ne4 {[%clk 0:02:18]}  Bf8 {[%clk 0:00:51]} 23. Bd2 {[%clk 0:02:17]}  Qb7 {[%clk 0:00:45]} 24. f5 {[%clk 0:02:14]}  exf5 {[%clk 0:00:44]} 25. Qxf5 {[%clk 0:02:15]}  Be6 {[%clk 0:00:43]} 26. Qg5 {[%clk 0:02:13]}  Kh8 {[%clk 0:00:39]} 27. Qg3 {[%clk 0:02:11]}  Bd5 {[%clk 0:00:37]} 28. Bg5 {[%clk 0:01:43]}  Re8 {[%clk 0:00:29]} 29. Nf6 {[%clk 0:01:43]}  Rxe1 {[%clk 0:00:27]} 30. Rxe1 {[%clk 0:01:44]}  h6 {[%clk 0:00:25]} 31. Bh4 {[%clk 0:01:37]}  gxf6 {[%clk 0:00:25]} 32. Bxf6+ {[%clk 0:01:37]}  Kh7 {[%clk 0:00:25]} 33. Re5 {[%clk 0:01:24]}  Qc6 {[%clk 0:00:24]} 34. Qf4 {[%clk 0:01:21]}  Be6 {[%clk 0:00:22]} 35. Rh5 {[%clk 0:01:19]}  Qd6 {[%clk 0:00:18]} 36. Rxh6+ {[%clk 0:01:18]}  Bxh6 {[%clk 0:00:17]} 37. Qxd6 {[%clk 0:01:18]}  Rg8 {[%clk 0:00:16]} 38. Qe5 {[%clk 0:01:15]}  Rg6 {[%clk 0:00:16]} 39. Be7 {[%clk 0:01:11]}  Be3+ {[%clk 0:00:16]} 40. Kh2 {[%clk 0:01:09]}  Bf2 {[%clk 0:00:15]} 41. Bxc5 {[%clk 0:01:07]}  Bh4 {[%clk 0:00:08]} 42. Bxd4 {[%clk 0:01:06]}  Kh6 {[%clk 0:00:07]} 43. Qh8+ {[%clk 0:01:04]}  Kg5 {[%clk 0:00:08]} 44. Be3+ {[%clk 0:01:04]}  Kf5 {[%clk 0:00:08]} 45. Qxh4 {[%clk 0:01:04]}  Bd5 {[%clk 0:00:08]} 46. Qf4+ {[%clk 0:00:59]}  Ke6 {[%clk 0:00:09]} 47. g4 {[%clk 0:01:00]}  Rf6 {[%clk 0:00:09]} 48. Qd4 {[%clk 0:00:58]}  Rf3 {[%clk 0:00:08]} 49. Bf4 {[%clk 0:00:57]}  Rf1 {[%clk 0:00:07]} 50. Qe5+ {[%clk 0:00:56]} 1-0


[Site "https://www.chess.com"]

[Event "Titled Tuesday Blitz January 11 2022"]
[White "Stankovic, Ivan G"]
[Black "Moskalenko, Alexander"]
[WhiteFideId "902837"]
[BlackFideId "4155351"]
[WhiteElo "2195"]
[BlackElo "2515"]
[Result "0-1"]
[Round "01"]
[TimeControl "180+1"]
[Date "2022.01.11"]
[WhiteClock "0:00:56"]
[BlackClock "0:02:02"]

1. e4 {[%clk 0:02:53]}  g6 {[%clk 0:02:28]} 2. c4 {[%clk 0:02:52]}  e5 {[%clk 0:02:23]} 3. Nc3 {[%clk 0:02:51]}  Nc6 {[%clk 0:02:23]} 4. g3 {[%clk 0:02:51]}  Bg7 {[%clk 0:02:23]} 5. Bg2 {[%clk 0:02:52]}  Nge7 {[%clk 0:02:24]} 6. Nge2 {[%clk 0:02:53]}  d6 {[%clk 0:02:24]} 7. d3 {[%clk 0:02:53]}  O-O {[%clk 0:02:25]} 8. O-O {[%clk 0:02:54]}  f5 {[%clk 0:02:26]} 9. Nd5 {[%clk 0:02:53]}  fxe4 {[%clk 0:02:23]} 10. dxe4 {[%clk 0:02:52]}  Bg4 {[%clk 0:02:21]} 11. Bg5 {[%clk 0:02:44]}  h6 {[%clk 0:02:16]} 12. Nxe7+ {[%clk 0:02:40]}  Nxe7 {[%clk 0:02:17]} 13. Be3 {[%clk 0:02:39]}  c5 {[%clk 0:02:13]} 14. Qd2 {[%clk 0:02:38]}  Nc6 {[%clk 0:02:12]} 15. f3 {[%clk 0:02:33]}  Be6 {[%clk 0:02:13]} 16. Bxh6 {[%clk 0:02:17]}  Bxc4 {[%clk 0:02:12]} 17. Bxg7 {[%clk 0:02:13]}  Kxg7 {[%clk 0:02:13]} 18. Rf2 {[%clk 0:02:06]}  Bxe2 {[%clk 0:02:12]} 19. Qxe2 {[%clk 0:02:04]}  Nd4 {[%clk 0:02:13]} 20. Qc4 {[%clk 0:02:04]}  b5 {[%clk 0:02:13]} 21. Qd5 {[%clk 0:02:03]}  Qb6 {[%clk 0:02:11]} 22. f4 {[%clk 0:02:01]}  Qc6 {[%clk 0:02:11]} 23. fxe5 {[%clk 0:01:58]}  Qxd5 {[%clk 0:02:10]} 24. exd5 {[%clk 0:01:57]}  Rxf2 {[%clk 0:02:08]} 25. Kxf2 {[%clk 0:01:57]}  Rf8+ {[%clk 0:02:09]} 26. Kg1 {[%clk 0:01:49]}  dxe5 {[%clk 0:02:09]} 27. b3 {[%clk 0:01:48]}  c4 {[%clk 0:02:08]} 28. bxc4 {[%clk 0:01:47]}  bxc4 {[%clk 0:02:09]} 29. Rc1 {[%clk 0:01:47]}  c3 {[%clk 0:02:09]} 30. Bf1 {[%clk 0:01:44]}  c2 {[%clk 0:02:08]} 31. Bd3 {[%clk 0:01:44]}  Rf3 {[%clk 0:02:06]} 32. Bc4 {[%clk 0:01:15]}  Rc3 {[%clk 0:02:05]} 33. Bf1 {[%clk 0:01:11]}  Kf6 {[%clk 0:02:03]} 34. Kf2 {[%clk 0:01:11]}  e4 {[%clk 0:02:03]} 35. a4 {[%clk 0:01:03]}  Ke5 {[%clk 0:02:02]} 36. a5 {[%clk 0:00:56]}  Nb3 {[%clk 0:02:02]} 0-1


[Site "https://www.chess.com"]